bitfinex-derivatives/quotes_SOLF0:USTF0_20260312
["timestamp","ask_amount","ask_price","bid_price","bid_amount"]
[1773311058698,30.67232905,86.525,86.47,2.49140908]
[1773311059093,30.67232905,86.525,86.481,10.406]
[1773311060094,30.67232905,86.525,86.451,20.819]
[1773311060095,30.67303809,86.519,86.473,10.407]
[1773311060598,30.67303809,86.519,86.48,10.406]
[1773311065805,30.69429103,86.515,86.47,10.407]
[1773311066896,30.69429103,86.513,86.47,10.407]
[1773311067101,30.69429103,86.513,86.476,10.406]
[1773311067302,30.69429103,86.513,86.46,2.49140908]
[1773311068806,30.69429103,86.513,86.48,10.406]
[1773311071304,30.69429103,86.513,86.472,10.407]
[1773311075805,30.69429103,86.513,86.483,10.406]
[1773311076903,30.69429103,86.513,86.46,2.49140908]
[1773311077109,30.69429103,86.513,86.445,11.84218427]
[1773311077110,30.69429103,86.513,86.48,2.49140908]
[1773311078013,30.69429103,86.513,86.487,10.405]
[1773311078909,30.7398144,86.54,86.49,2.49140908]
[1773311079911,30.7398144,86.54,86.5,10.404]
[1773311080215,33.23122348,86.54,86.48,2.49140908]
[1773311081911,30.74313033,86.537,86.495,10.404]
[1773311085312,30.75302733,86.534,86.495,10.404]
[1773311085711,2.49140908,86.53,86.495,10.404]
[1773311085910,30.75302733,86.529,86.495,10.404]
[1773311086107,30.75302733,86.529,86.489,10.405]
[1773311086811,30.75409881,86.527,86.483,10.406]
[1773311087007,30.75409881,86.519,86.483,10.406]
[1773311087314,30.75409881,86.519,86.46,2.49140908]
[1773311088306,30.75409881,86.519,86.47,2.49140908]
[1773311089917,30.75409881,86.519,86.487,10.405]
[1773311098813,30.75409881,86.519,86.47,2.49408669]
[1773311101022,30.75409881,86.519,86.49,10.405]
[1773311103822,30.77638027,86.536,86.49,2.49408669]
[1773311104124,30.77638027,86.536,86.48,2.49408669]
[1773311105020,30.77638027,86.536,86.5,10.404]
[1773311105616,30.77638027,86.536,86.506,10.403]
[1773311108620,30.77638027,86.536,86.512,10.402]
[1773311109025,30.77638027,86.536,86.48,2.49408669]
[1773311109424,30.77638027,86.536,86.502,10.403]
[1773311110824,30.66549314,86.529,86.494,10.404]
[1773311111125,30.66549314,86.519,86.466,64.85372695]
[1773311112024,30.66549314,86.519,86.486,10.405]
[1773311113022,30.66549314,86.519,86.478,10.406]
[1773311113228,30.711292,86.509,86.478,10.406]
[1773311113428,30.711292,86.499,86.478,10.406]
[1773311113924,30.711292,86.519,86.478,10.406]
[1773311114129,30.711292,86.509,86.478,10.406]
[1773311115431,30.711292,86.509,86.463,21.17372695]
[1773311116239,30.711292,86.509,86.476,10.406]
[1773311120145,30.711292,86.509,86.469,10.407]
[1773311120738,30.73122613,86.499,86.469,10.407]
[1773311121540,30.73122613,86.499,86.449,43.68]
[1773311121541,30.73122613,86.499,86.461,10.408]
[1773311121938,30.73122613,86.499,86.452,21.17372695]
[1773311122140,30.73122613,86.499,86.473,10.407]
[1773311122340,30.73169985,86.525,86.47,2.49408669]
[1773311123146,30.73169985,86.525,86.492,10.405]
[1773311123639,30.73169985,86.525,86.47,2.49408669]
[1773311124249,30.73169985,86.525,86.491,10.405]
[1773311124851,30.73169985,86.525,86.484,10.405]
[1773311125448,30.66283147,86.519,86.484,10.405]
[1773311125749,30.66283147,86.519,86.476,10.406]
[1773311126354,30.66283147,86.519,86.483,10.406]
[1773311134456,30.66283147,86.519,86.47,2.49408669]
[1773311135957,30.66283147,86.519,86.484,10.405]
[1773311138755,30.70119923,86.518,86.474,10.407]
[1773311139260,30.70119923,86.518,86.465,21.17372695]
[1773311140862,30.70119923,86.518,86.48,10.406]
[1773311142961,30.70119923,86.518,86.487,10.405]
[1773311143663,30.78498711,86.532,86.49,2.49408669]
[1773311144761,30.78498711,86.532,86.508,10.403]
[1773311144963,30.78498711,86.532,86.49,2.49408669]
[1773311145955,30.78498711,86.532,86.501,10.403]
[1773311151971,30.78498711,86.532,86.506,10.403]
[1773311155872,30.81845,86.549,86.512,10.402]
[1773311159864,30.81845,86.549,86.518,10.401]
[1773311161267,30.85740842,86.567,86.52,2.49237948]
[1773311163169,30.85740842,86.567,86.495,43.68]
[1773311163170,33.3546231,86.6,86.54,2.49237948]
[1773311164275,30.8628473,86.569,86.51,2.49237948]
[1773311165970,30.8628473,86.569,86.528,10.4]
[1773311169074,30.97421294,86.585,86.53,2.49237948]
[1773311169872,30.97421294,86.585,86.54,2.49237948]
[1773311170977,30.97421294,86.585,86.55,10.398]
[1773311172272,10.80731292,86.651,86.54,2.49237948]
[1773311172273,31.00597933,86.609,86.54,2.49237948]
[1773311172571,31.00597933,86.599,86.54,2.49237948]
[1773311173467,31.00597933,86.599,86.563,10.396]
[1773311175372,31.0078954,86.631,86.584,10.393]
[1773311175573,31.0078954,86.629,86.584,10.393]
[1773311181582,31.0078954,86.629,86.58,2.49237948]
[1773311182082,31.0078954,86.629,86.596,10.392]
[1773311184980,10.387,86.639,86.596,10.392]
[1773311185176,31.00797674,86.638,86.596,10.392]
[1773311185580,31.00797674,86.638,86.58,2.49237948]
[1773311185785,31.00797674,86.634,86.589,10.393]
[1773311186392,31.00797674,86.634,86.595,10.392]
[1773311189388,31.00797674,86.634,86.61,10.39]
[1773311192997,31.00797674,86.634,86.602,10.391]
[1773311195001,31.00797674,86.634,86.608,10.391]
[1773311196406,31.06610062,86.649,86.608,10.391]
[1773311197904,31.07580742,86.629,86.599,10.392]
[1773311198504,31.07664452,86.645,86.61,10.39]
[1773311199111,31.07664452,86.645,86.603,10.391]
[1773311200007,31.07664452,86.645,86.609,10.39]
[1773311200209,43.64,86.655,86.6,2.49237948]
[1773311200210,31.18686178,86.649,86.6,2.49237948]
[1773311200412,31.18686178,86.649,86.61,2.49237948]
[1773311200611,43.64,86.655,86.629,10.388]
[1773311201110,31.18686178,86.654,86.6,2.49237948]
[1773311201620,31.24558979,86.639,86.58,2.49237948]
[1773311202316,31.24558979,86.639,86.594,10.392]
[1773311205222,31.24558979,86.639,86.601,10.391]
[1773311206220,31.25124031,86.637,86.58,2.49237948]
[1773311207411,2.49237948,86.62,86.56,2.49237948]
[1773311207623,31.26051448,86.609,86.549,21.17372695]
[1773311207820,31.26051448,86.609,86.566,10.396]
[1773311208012,31.26051448,86.599,86.566,10.396]
[1773311208218,31.26051448,86.599,86.548,43.62]
[1773311208219,31.26051448,86.599,86.55,2.49237948]
[1773311208523,31.26051448,86.599,86.571,10.395]
[1773311210622,31.26051448,86.599,86.564,10.396]
[1773311216522,31.26051448,86.599,86.55,2.49237948]
[1773311217718,31.26051448,86.599,86.564,10.396]
[1773311219227,31.27865309,86.619,86.56,2.48937481]
[1773311219428,31.27865309,86.619,86.55,2.48937481]
[1773311219624,31.27098918,86.609,86.55,2.48937481]
[1773311220928,31.27098918,86.609,86.573,10.395]
[1773311221623,2.48937481,86.6,86.565,10.396]
[1773311221928,31.27756156,86.599,86.565,10.396]
[1773311222428,31.27846137,86.589,86.558,10.397]
[1773311222928,31.27846137,86.579,86.537,43.62]
[1773311223128,31.27846137,86.579,86.523,21.17372695]
[1773311223329,31.27846137,86.579,86.522,21.17372695]
[1773311223927,31.27846137,86.579,86.522,32.71992328]
[1773311224230,31.27846137,86.579,86.521,21.17372695]
[1773311224725,31.27846137,86.579,86.538,10.399]
[1773311225327,31.27846137,86.579,86.53,2.48937481]
[1773311226033,31.27846137,86.579,86.52,2.48937481]
[1773311226532,31.27846137,86.579,86.544,10.398]
[1773311231234,31.27846137,86.579,86.536,10.399]
[1773311231831,31.27846137,86.579,86.542,10.398]
[1773311232032,31.27846137,86.579,86.52,2.48937481]
[1773311232732,31.27846137,86.579,86.546,10.398]
[1773311239242,26.13994658,86.569,86.539,10.399]
[1773311244048,26.22464857,86.582,86.53,2.48937481]
[1773311244245,26.22354052,86.609,86.57,2.48937481]
[1773311245447,26.21816839,86.629,86.57,2.48937481]
[1773311245949,26.21816839,86.629,86.586,10.393]
[1773311254060,26.2344759,86.628,86.586,10.393]
[1773311254858,26.23346071,86.625,86.579,10.394]
[1773311255458,26.23346071,86.625,86.586,10.393]
[1773311258466,26.23346071,86.625,86.593,10.392]
[1773311262374,26.28053768,86.636,86.593,10.392]
[1773311268675,26.28053768,86.636,86.598,10.392]
[1773311269379,26.25635666,86.634,86.58,2.48937481]
[1773311270878,26.25468029,86.659,86.6,2.48937481]
[1773311271080,26.25468029,86.659,86.61,2.48937481]
[1773311271877,26.25468029,86.659,86.62,2.48937481]
[1773311272884,26.25468029,86.659,86.628,10.388]
[1773311279787,26.25468029,86.659,86.621,10.389]
[1773311281586,26.25468029,86.659,86.627,10.388]
[1773311282480,26.25468029,86.659,86.591,43.64]
[1773311282682,26.25468029,86.659,86.583,21.17372695]
[1773311282683,20.97257094,86.649,86.6,2.48583858]
[1773311283291,20.80048459,86.662,86.62,2.48583858]
[1773311283587,20.80048459,86.662,86.573,43.62]
[1773311283588,20.80048459,86.662,86.63,2.48583858]
[1773311284392,20.79999333,86.689,86.646,10.386]
[1773311287689,20.77755014,86.679,86.639,10.387]
[1773311288297,20.77755014,86.679,86.632,10.388]
[1773311289198,20.74511153,86.666,86.609,43.62]
[1773311289394,20.74511153,86.659,86.6,2.48583858]
[1773311290202,20.74511153,86.659,86.621,10.389]
[1773311292098,20.74511153,86.659,86.62,2.48583858]
[1773311292900,20.74511153,86.659,86.631,10.388]
[1773311294903,20.74511153,86.659,86.623,10.389]
[1773311295302,20.66827162,86.649,86.573,20.79]
[1773311295607,20.66827162,86.647,86.598,10.392]
[1773311296300,20.66553736,86.639,86.598,10.392]
[1773311297201,20.66553736,86.639,86.604,10.391]
[1773311298100,20.66553736,86.639,86.59,2.48583858]
[1773311298101,20.66553736,86.639,86.596,10.392]
[1773311299108,20.66553736,86.639,86.604,10.391]
[1773311302208,20.66553736,86.639,86.597,10.392]
[1773311304007,20.61671027,86.636,86.597,10.392]
[1773311305111,20.61671027,86.636,86.603,10.391]
[1773311305804,20.64863682,86.651,86.587,43.62]
[1773311306009,20.64863682,86.651,86.6,2.48583858]
[1773311306514,20.64863682,86.651,86.619,10.389]
[1773311306807,20.64863682,86.651,86.6,2.48583858]
[1773311307712,20.64863682,86.651,86.612,10.39]
[1773311308614,20.64863682,86.651,86.618,10.389]
[1773311310716,20.64863682,86.651,86.611,10.39]
[1773311314417,20.64863682,86.651,86.617,10.39]
[1773311317024,20.64863682,86.651,86.609,10.39]
[1773311318320,20.64863682,86.651,86.6,2.48583858]
[1773311318519,20.64863682,86.651,86.587,43.62]
[1773311318520,20.64863682,86.651,86.61,2.48583858]
[1773311319926,20.64863682,86.651,86.627,10.388]
[1773311324224,20.64863682,86.651,86.621,10.389]
[1773311327830,20.64863682,86.651,86.628,10.388]
[1773311330629,43.62,86.687,86.633,10.388]
[1773311330630,20.63801809,86.665,86.633,10.388]
[1773311340745,20.61024826,86.649,86.596,21.17372695]
[1773311340949,20.61024826,86.649,86.592,20.785]
[1773311341652,20.61024826,86.649,86.592,41.95872695]
[1773311343251,20.61024826,86.649,86.593,21.17372695]
[1773311343951,20.61024826,86.649,86.615,10.39]
[1773311344153,20.61024826,86.649,86.593,21.17372695]
[1773311344754,20.61024826,86.649,86.6,2.48685464]
[1773311345842,20.61024826,86.649,86.614,10.39]
[1773311346256,20.59758945,86.639,86.593,21.17372695]
[1773311346444,20.59758945,86.639,86.59,21.17372695]
[1773311347953,20.59758945,86.639,86.598,10.392]
[1773311348750,20.61735632,86.659,86.61,2.48685464]
[1773311350055,20.61735632,86.659,86.626,10.388]
[1773311352957,20.61735632,86.659,86.616,10.39]
[1773311353158,15.42619985,86.639,86.596,21.17372695]
[1773311353358,15.42619985,86.639,86.595,21.17372695]
[1773311353958,15.42619985,86.639,86.605,10.391]
[1773311354455,15.42619985,86.639,86.611,10.39]
[1773311354757,15.41069274,86.652,86.61,2.48685464]
[1773311354953,15.41069274,86.652,86.628,10.388]
[1773311355158,15.41069274,86.652,86.603,21.17372695]
[1773311355858,15.41069274,86.652,86.621,10.389]
[1773311359468,15.41181251,86.669,86.62,2.48685464]
[1773311360061,15.41181251,86.659,86.627,10.388]
[1773311360265,15.41181251,86.659,86.612,21.17372695]
[1773311360266,15.41181251,86.659,86.611,21.17372695]
[1773311361663,15.41181251,86.659,86.627,10.388]
[1773311361859,15.41181251,86.659,86.611,21.17372695]
[1773311362060,15.41181251,86.659,86.601,21.17372695]
[1773311362258,15.41181251,86.659,86.599,21.17372695]
[1773311362464,15.41181251,86.659,86.622,10.389]
[1773311363375,15.41181251,86.659,86.63,10.388]
[1773311365870,15.41181251,86.659,86.623,10.389]
[1773311373382,8.6586648,86.685,86.599,43.62]
[1773311373383,15.3440789,86.649,86.604,21.17372695]
[1773311373681,15.3440789,86.649,86.599,43.62]
[1773311373877,15.3440789,86.649,86.57,28.20255492]
[1773311373878,15.3440789,86.649,86.593,21.17372695]
[1773311374279,15.3440789,86.649,86.594,21.17372695]
[1773311374676,15.3440789,86.649,86.593,21.17372695]
[1773311374873,15.3440789,86.647,86.607,10.391]
[1773311375979,15.3440789,86.647,86.6,2.48685464]
[1773311376979,15.3440789,86.647,86.571,43.62]
[1773311377184,15.3440789,86.647,86.59,2.48685464]
[1773311377880,10.04645707,86.644,86.606,10.391]
[1773311378085,10.04645707,86.639,86.585,21.53396377]
[1773311378280,10.04645707,86.639,86.584,21.53396377]
[1773311378786,10.04645707,86.639,86.59,2.48685464]
[1773311379984,10.04645707,86.639,86.599,10.392]
[1773311382793,10.386,86.649,86.605,10.391]
[1773311382985,9.98017127,86.653,86.61,2.48685464]
[1773311383185,9.98017127,86.653,86.6,2.48685464]
[1773311383586,9.98017127,86.653,86.601,21.53396377]
[1773311383790,9.98017127,86.653,86.617,10.389]
[1773311394496,9.98017127,86.653,86.623,10.389]
[1773311395399,9.98017127,86.653,86.616,10.39]
[1773311401411,9.98017127,86.653,86.623,10.389]
[1773311401808,9.98017127,86.653,86.61,2.48685464]
[1773311402112,9.98017127,86.653,86.601,21.53396377]
[1773311402113,9.96609944,86.669,86.609,21.53396377]
[1773311402409,9.96609944,86.669,86.608,21.53396377]
[1773311402613,9.96609944,86.667,86.627,10.388]
[1773311403111,9.96609944,86.667,86.62,2.48685464]
[1773311403611,9.96609944,86.667,86.632,10.388]
[1773311403909,9.97230506,86.659,86.605,21.53396377]
[1773311404314,9.97230506,86.668,86.61,2.48555974]
[1773311404509,9.97230506,86.668,86.62,2.48555974]
[1773311405115,9.97230506,86.668,86.61,2.48555974]
[1773311405911,9.97230506,86.668,86.627,10.388]
[1773311406714,10.384,86.667,86.627,10.388]
[1773311407016,10.06681032,86.659,86.621,10.389]
[1773311407514,10.20228498,86.655,86.61,21.53396377]
[1773311408218,10.20228498,86.655,86.606,21.53396377]
[1773311409015,10.20228498,86.655,86.617,10.39]
[1773311409712,10.384,86.66,86.623,10.389]
[1773311409914,10.23544376,86.659,86.623,10.389]
[1773311412215,10.25361977,86.67,86.62,2.48555974]
[1773311414120,10.25361977,86.67,86.635,10.387]
[1773311415122,12.73917951,86.67,86.635,10.387]
[1773311415619,10.25361977,86.67,86.635,10.387]
[1773311416223,8.58403588,86.693,86.62,2.48555974]
[1773311416224,10.35056592,86.686,86.64,2.48555974]
[1773311416422,10.35056592,86.701,86.65,2.48555974]
[1773311416818,10.35056592,86.701,86.612,34.64]
[1773311416819,10.35056592,86.704,86.642,21.53396377]
[1773311417122,10.35056592,86.689,86.64,2.48555974]
[1773311417317,10.34950784,86.701,86.65,2.48555974]
[1773311417523,10.34950784,86.701,86.636,21.53396377]
[1773311417524,12.08017055,86.69,86.636,21.53396377]
[1773311417723,12.08017055,86.69,86.64,2.48555974]
[1773311418222,12.08017055,86.69,86.623,43.62]
[1773311418223,12.08017055,86.69,86.65,2.48555974]
[1773311418424,10.34950784,86.706,86.66,2.48555974]
[1773311418725,10.34950784,86.697,86.641,10.387]
[1773311419025,10.34950784,86.711,86.66,2.48555974]
[1773311419228,2.48555974,86.71,86.66,2.48555974]
[1773311419433,10.49718302,86.697,86.646,10.386]
[1773311419727,10.49718302,86.697,86.64,2.48555974]
[1773311419929,10.49718302,86.709,86.66,2.48555974]
[1773311420818,10.49734016,86.697,86.65,10.385]
[1773311421823,10.49734016,86.697,86.64,12.87255974]
[1773311422021,10.49734016,86.697,86.64,2.48555974]
[1773311422231,10.49835765,86.722,86.67,2.48555974]
[1773311422723,10.49835765,86.722,86.66,10.384]
[1773311422724,10.49835765,86.739,86.68,2.48555974]
[1773311422922,10.49835765,86.753,86.67,11.30728036]
[1773311423122,10.49835765,86.742,86.69,2.48555974]
[1773311423317,10.50202158,86.739,86.68,2.48555974]
[1773311423523,10.50202158,86.729,86.655,43.6]
[1773311423819,2.48555974,86.74,86.68,2.48555974]
[1773311424123,10.50202158,86.782,86.684,21.53396377]
[1773311424323,10.50202158,86.782,86.686,21.53396377]
[1773311424620,2.48555974,86.77,86.685,21.53396377]
[1773311424825,10.368,86.799,86.733,10.376]
[1773311425026,10.50202158,86.789,86.72,2.48555974]
[1773311425228,10.50202158,86.779,86.684,21.53396377]
[1773311425421,2.00614526,86.816,86.74,2.48555974]
[1773311425422,10.43441803,86.815,86.74,2.48555974]
[1773311425726,10.43441803,86.779,86.72,2.48555974]
[1773311426719,10.43441803,86.779,86.73,2.48555974]
[1773311427117,10.43441803,86.779,86.698,43.6]
[1773311427118,10.43441803,86.779,86.72,2.48555974]
[1773311427316,10.34551915,86.769,86.712,10.378]
[1773311427528,10.34551915,86.769,86.71,2.48555974]
[1773311427926,10.34551915,86.769,86.72,2.48555974]
[1773311428422,10.34551915,86.769,86.711,10.378]
[1773311429018,10.371,86.768,86.71,2.48555974]
[1773311429324,10.32155238,86.749,86.69,2.48555974]
[1773311429624,10.32155238,86.729,86.673,10.383]
[1773311429923,10.32155238,86.719,86.66,2.48555974]
[1773311430123,10.32155238,86.709,86.651,10.385]
[1773311430325,10.32155238,86.699,86.64,2.48555974]
[1773311430725,10.32155238,86.699,86.641,10.387]
[1773311431124,10.32155238,86.699,86.611,43.58]
[1773311431429,10.30506527,86.689,86.64,2.48555974]
[1773311431625,10.30506527,86.689,86.611,43.58]
[1773311431831,10.30506527,86.689,86.61,6.21144759]
[1773311432022,10.30506527,86.689,86.611,43.58]
[1773311433427,6.21144759,86.7,86.59,6.21144759]
[1773311433428,10.26646485,86.685,86.59,6.21144759]
[1773311433819,10.26646485,86.669,86.604,10.391]
[1773311434630,10.26646485,86.669,86.59,6.21144759]
[1773311434631,10.26646485,86.669,86.613,10.39]
[1773311435330,10.26646485,86.669,86.622,10.389]
[1773311435526,0.00046485,86.669,86.59,6.21144759]
[1773311435734,6.21144759,86.74,86.63,6.21144759]
[1773311436926,10.378,86.71,86.656,10.385]
[1773311437924,6.21144759,86.74,86.63,6.21144759]
[1773311438826,6.21144759,86.75,86.65,6.21144759]
[1773311439529,6.21144759,86.75,86.642,43.6]
[1773311439736,10.376,86.727,86.671,10.383]
[1773311440234,10.376,86.727,86.642,43.6]
[1773311441434,10.376,86.727,86.633,20.776]
[1773311441631,10.375,86.735,86.65,6.21144759]
[1773311442235,10.376,86.728,86.673,10.383]
[1773311443036,43.6,86.778,86.65,6.21144759]
[1773311443037,6.21144759,86.76,86.65,6.21144759]
[1773311443335,6.21144759,86.76,86.651,43.6]
[1773311444237,6.21144759,86.74,86.651,43.6]
[1773311445433,10.376,86.733,86.651,43.6]
[1773311446630,10.375,86.742,86.66,6.21144759]
[1773311446837,6.21144759,86.76,86.66,6.21144759]
[1773311447038,6.21144759,86.76,86.653,43.58]
[1773311447237,10.376,86.728,86.653,43.58]
[1773311447639,6.21144759,86.76,86.653,43.58]
[1773311448740,20.743,86.772,86.66,6.21144759]
[1773311448942,20.743,86.772,86.661,43.58]
[1773311449339,10.375,86.74,86.694,10.38]
[1773311449642,20.743,86.772,86.694,10.38]
[1773311450637,6.21144759,86.78,86.701,10.379]
[1773311451033,10.374,86.743,86.661,43.58]
[1773311451238,10.374,86.743,86.699,10.38]
[1773311451443,6.21144759,86.78,86.699,10.38]
[1773311451638,6.21144759,86.78,86.691,10.381]
[1773311451839,6.21144759,86.76,86.661,43.58]
[1773311452342,4.84924497,86.759,86.661,43.58]
[1773311452841,10.376,86.73,86.683,10.382]
[1773311453243,4.84924497,86.737,86.649,43.58]
[1773311454039,10.378,86.718,86.674,10.383]
[1773311454235,4.84924497,86.737,86.649,43.58]
[1773311454639,10.377,86.718,86.671,10.383]
[1773311455346,4.85723547,86.724,86.678,10.382]
[1773311455648,4.86765632,86.725,86.678,10.382]
[1773311456147,10.378,86.714,86.668,10.383]
[1773311456844,10.378,86.714,86.649,43.58]
[1773311457448,4.89869817,86.713,86.649,43.58]
[1773311457848,4.89869817,86.713,86.674,10.383]
[1773311458043,4.89869817,86.713,86.649,43.58]
[1773311458348,10.377,86.723,86.649,43.58]
[1773311459149,4.89869817,86.722,86.649,43.58]
[1773311459948,4.89869817,86.722,86.678,10.382]
[1773311460949,4.92775574,86.738,86.649,43.58]
[1773311461154,4.92775574,86.751,86.67,6.21144759]
[1773311461347,4.92785751,86.765,86.69,6.21144759]
[1773311461548,4.92785751,86.765,86.726,10.376]
[1773311464356,3.80310315,86.749,86.669,3.83434435]
[1773311464759,10.377,86.725,86.672,3.83434435]
[1773311464947,3.80310315,86.733,86.672,3.83434435]
[1773311465947,14.17910315,86.733,86.682,3.83434435]
[1773311466152,3.80310315,86.733,86.682,3.83434435]
[1773311466359,3.80310315,86.733,86.651,3.83434435]
[1773311466956,3.80310315,86.716,86.653,3.83434435]
[1773311467454,10.38,86.697,86.653,3.83434435]
[1773311467654,3.80310315,86.716,86.653,3.83434435]
[1773311469053,10.379,86.705,86.655,10.385]
[1773311469655,10.379,86.705,86.656,3.83434435]
[1773311470157,10.379,86.705,86.658,3.83434435]
[1773311470758,10.38,86.698,86.658,3.83434435]
[1773311471960,3.80310315,86.705,86.658,3.83434435]
[1773311472156,3.80310315,86.758,86.658,3.83434435]
[1773311473153,3.80310315,86.712,86.67,3.83434435]
[1773311473357,3.80310315,86.712,86.631,3.83434435]
[1773311473758,10.38,86.695,86.652,10.385]
[1773311474160,3.80310315,86.712,86.653,3.83434435]
[1773311474555,10.378,86.711,86.669,10.383]
[1773311474956,10.378,86.711,86.667,3.83434435]
[1773311476856,10.379,86.704,86.667,3.83434435]
[1773311478260,3.80310315,86.701,86.646,3.83434435]
[1773311479766,10.381,86.691,86.647,14.22034435]
[1773311481266,14.27307083,86.688,86.647,10.386]
[1773311481471,3.89207083,86.687,86.647,10.386]
[1773311482172,3.89207083,86.687,86.632,3.77744116]
[1773311482568,3.89207083,86.687,86.634,3.77744116]
[1773311483773,10.382,86.678,86.634,3.77744116]
[1773311484161,3.89207083,86.687,86.634,3.77744116]
[1773311484364,8.51787672,86.718,86.57,3.77744116]
[1773311484365,6.20568003,86.66,86.57,3.77744116]
[1773311485173,10.389,86.623,86.57,3.77744116]
[1773311485375,6.20568003,86.64,86.57,3.77744116]
[1773311486169,6.20568003,86.64,86.553,11.04062963]
[1773311486372,10.391,86.607,86.553,11.04062963]
[1773311486669,6.20568003,86.64,86.553,11.04062963]
[1773311487883,10.39,86.615,86.561,11.08296179]
[1773311490078,10.39,86.615,86.562,10.396]
[1773311490278,10.389,86.623,86.563,11.07370985]
[1773311490478,6.20568003,86.64,86.563,11.07370985]
[1773311490881,10.391,86.606,86.563,11.07370985]
[1773311491378,10.39,86.614,86.563,11.07370985]
[1773311494083,6.20568003,86.64,86.563,11.07370985]
[1773311494985,10.391,86.602,86.563,11.07370985]
[1773311495585,6.20568003,86.62,86.543,11.02603152]
[1773311495787,6.20568003,86.62,86.505,11.02603152]
[1773311496286,6.20568003,86.62,86.533,11.02603152]
[1773311496886,10.394,86.579,86.533,11.02603152]
[1773311498079,10.395,86.572,86.522,10.401]
[1773311498278,6.20568003,86.6,86.523,11.04524963]
[1773311498588,6.20568003,86.58,86.505,11.04524963]
[1773311499087,10.397,86.558,86.505,11.04524963]
[1773311499383,161.727,86.561,86.441,27.24465199]
[1773311499689,6.20568003,86.54,86.46,27.24465199]
[1773311500283,10.402,86.512,86.46,27.24465199]
[1773311501083,10.403,86.503,86.46,27.24465199]
[1773311502079,10.403,86.503,86.443,10.41]
[1773311502286,10.403,86.503,86.444,27.17839407]
[1773311502484,10.403,86.503,86.446,27.17839407]
[1773311504488,6.20568003,86.55,86.45,6.20568003]
[1773311504688,6.20568003,86.55,86.451,27.17807935]
[1773311505385,10.401,86.523,86.457,27.17845127]
[1773311506494,10.401,86.523,86.462,27.17845127]
[1773311508190,10.4,86.533,86.468,27.14338249]
[1773311509891,10.398,86.545,86.486,27.14233041]
[1773311511098,10.398,86.545,86.488,27.14242698]
[1773311511294,186.88251358,86.568,86.488,27.14242698]
[1773311512197,161.719,86.566,86.451,27.1141641]
[1773311512395,6.20568003,86.53,86.451,27.1141641]
[1773311513989,10.403,86.504,86.451,27.1141641]
[1773311516701,10.404,86.495,86.451,27.1141641]
[1773311517302,10.403,86.505,86.447,27.09037963]
[1773311518194,10.404,86.497,86.447,27.09037963]
[1773311518803,10.403,86.506,86.449,27.09037963]
[1773311519501,10.403,86.506,86.457,10.409]
[1773311519699,10.403,86.506,86.458,27.11231027]
[1773311520196,6.20568003,86.53,86.461,27.11231027]
[1773311521303,10.403,86.506,86.462,27.10139723]
[1773311522096,10.402,86.515,86.464,27.10139723]
[1773311522296,43.66,86.545,86.464,27.10139723]
[1773311523000,10.402,86.511,86.464,27.10139723]
[1773311524007,10.401,86.519,86.466,27.10164581]
[1773311524303,43.66,86.545,86.466,27.10164581]
[1773311525703,10.401,86.518,86.47,27.11751877]
[1773311526101,10.401,86.518,86.473,27.11751877]
[1773311526299,10.401,86.526,86.473,27.11751877]
[1773311527510,10.4,86.534,86.475,27.10762543]
[1773311528911,10.4,86.534,86.486,27.10285994]
[1773311529608,186.88251358,86.568,86.414,55.64842919]
[1773311529609,43.66,86.541,86.431,27.10728696]
[1773311529804,6.23535655,86.53,86.431,27.10728696]
[1773311530009,10.404,86.496,86.449,27.10728696]
[1773311530913,10.404,86.496,86.453,27.10284806]
[1773311531212,10.403,86.504,86.453,27.10284806]
[1773311532912,10.403,86.504,86.463,27.09210033]
[1773311535113,10.402,86.511,86.465,27.08559986]
[1773311536214,43.66,86.529,86.43,6.23535655]
[1773311536215,10.401,86.52,86.469,27.07974962]
[1773311537622,10.402,86.514,86.475,10.407]
[1773311537815,10.402,86.514,86.469,27.07974962]
[1773311538019,43.66,86.543,86.469,27.07974962]